[Event "Live Chess"]
[Site "Chess.com"]
[Date "2024.06.01"]
[Round "-"]
[White "peteopeteo"]
[Black "matt1979"]
[Result "1-0"]
[WhiteElo "1620"]
[BlackElo "1374"]
[TimeControl "300"]
[EndTime "11:13:24 PDT"]
[Termination "peteopeteo won on time"]

1. e4 {[%clk 0:04:59.5]} 1... d6 {[%clk 0:04:58.2]} 2. d4 {[%clk 0:04:58.5]}
2... Nf6 {[%clk 0:04:56.7]} 3. Nc3 {[%clk 0:04:56.2]} 3... Nbd7 {[%clk
0:04:55.4]} 4. Nf3 {[%clk 0:04:55.4]} 4... e5 {[%clk 0:04:54]} 5. Be3 {[%clk
0:04:47]} 5... Be7 {[%clk 0:04:47.5]} 6. Bd3 {[%clk 0:04:43.5]} 6... c6 {[%clk
0:04:45.3]} 7. O-O {[%clk 0:04:41.1]} 7... Qc7 {[%clk 0:04:44]} 8. Ne2 {[%clk
0:04:30.2]} 8... h6 {[%clk 0:04:35.5]} 9. Ng3 {[%clk 0:04:29.3]} 9... Ng4 {[%clk
0:04:18.3]} 10. Bd2 {[%clk 0:04:17.1]} 10... h5 {[%clk 0:04:04.1]} 11. h3 {[%clk
0:04:14.1]} 11... Ngf6 {[%clk 0:04:00.8]} 12. Nf5 {[%clk 0:04:10.6]} 12... g6
{[%clk 0:03:50.4]} 13. Ne3 {[%clk 0:03:57.7]} 13... Rg8 {[%clk 0:03:42.3]} 14.
c3 {[%clk 0:03:23.8]} 14... g5 {[%clk 0:03:34.9]} 15. Nf5 {[%clk 0:03:20.6]}
15... Nf8 {[%clk 0:03:24.1]} 16. Bxg5 {[%clk 0:03:09.4]} 16... Bxf5 {[%clk
0:03:20.5]} 17. exf5 {[%clk 0:03:06.3]} 17... N6h7 {[%clk 0:03:08.8]} 18. Bxe7
{[%clk 0:03:00.6]} 18... Qxe7 {[%clk 0:03:07]} 19. dxe5 {[%clk 0:02:59.7]} 19...
dxe5 {[%clk 0:03:03.7]} 20. Nxe5 {[%clk 0:02:56.4]} 20... Qg5 {[%clk 0:02:55.6]}
21. Qf3 {[%clk 0:02:40.3]} 21... Nf6 {[%clk 0:02:36.1]} 22. Rfe1 {[%clk
0:02:28.5]} 22... O-O-O {[%clk 0:02:17]} 23. Nxf7 {[%clk 0:02:22.6]} 23... Qh4
{[%clk 0:02:06.4]} 24. Nxd8 {[%clk 0:02:13.5]} 24... Kxd8 {[%clk 0:01:58.3]} 25.
Rad1 {[%clk 0:02:06.3]} 25... Kc8 {[%clk 0:01:53.2]} 26. Re7 {[%clk 0:01:28.4]}
26... Nd5 {[%clk 0:01:47.2]} 27. Rde1 {[%clk 0:01:18.5]} 27... Nf4 {[%clk
0:01:39.4]} 28. Re8+ {[%clk 0:01:04.2]} 28... Kc7 {[%clk 0:01:34.8]} 29. R8e7+
{[%clk 0:00:36.6]} 29... Kb6 {[%clk 0:01:23.1]} 30. Qe3+ {[%clk 0:00:34.2]}
30... c5 {[%clk 0:01:17.7]} 31. Qf3 {[%clk 0:00:13]} 31... Rxg2+ {[%clk
0:01:02.3]} 32. Qxg2 {[%clk 0:00:12.9]} 32... Nxg2 {[%clk 0:00:59.1]} 33. Kxg2
{[%clk 0:00:12.8]} 33... Qg5+ {[%clk 0:00:50.9]} 34. Kf1 {[%clk 0:00:11.9]}
34... Qh4 {[%clk 0:00:40.5]} 35. Re8 {[%clk 0:00:10.7]} 35... Qxh3+ {[%clk
0:00:38.1]} 36. Ke2 {[%clk 0:00:08.9]} 36... Qg4+ {[%clk 0:00:33.4]} 37. Kd2
{[%clk 0:00:07.9]} 37... Qf4+ {[%clk 0:00:30]} 38. Kc2 {[%clk 0:00:07.1]} 38...
Qxf2+ {[%clk 0:00:26.7]} 39. R1e2 {[%clk 0:00:06.6]} 39... Qf4 {[%clk
0:00:14.7]} 40. f6 {[%clk 0:00:04.1]} 40... Qxf6 {[%clk 0:00:09.2]} 41. Rxf8
{[%clk 0:00:03.3]} 41... Qxf8 {[%clk 0:00:05.9]} 42. Re6+ {[%clk 0:00:03.1]}
42... Kc7 {[%clk 0:00:02.9]} 43. a4 {[%clk 0:00:03]} 43... b6 {[%clk 0:00:00.5]}
44. a5 {[%clk 0:00:02.9]} 44... a6 {[%clk 0:00:00.1]} 45. Rc6+ {[%clk
0:00:02.3]} 1-0

[Event "Live Chess"]
[Site "Chess.com"]
[Date "2024.06.01"]
[Round "-"]
[White "KeithArkell"]
[Black "yarek"]
[Result "1-0"]
[WhiteElo "2518"]
[BlackElo "1718"]
[TimeControl "300"]
[EndTime "11:13:24 PDT"]
[Termination "KeithArkell won by resignation"]

1. d4 {[%clk 0:04:57.6]} 1... g6 {[%clk 0:04:58.4]} 2. Nf3 {[%clk 0:04:56.8]}
2... Bg7 {[%clk 0:04:57.9]} 3. c4 {[%clk 0:04:56.4]} 3... c6 {[%clk 0:04:56.8]}
4. Nc3 {[%clk 0:04:55.8]} 4... d5 {[%clk 0:04:56.3]} 5. cxd5 {[%clk 0:04:55.3]}
5... cxd5 {[%clk 0:04:55.2]} 6. Bf4 {[%clk 0:04:53.3]} 6... a6 {[%clk
0:04:46.3]} 7. e3 {[%clk 0:04:52.4]} 7... Nf6 {[%clk 0:04:44.1]} 8. h3 {[%clk
0:04:51]} 8... e6 {[%clk 0:04:40.8]} 9. Bd3 {[%clk 0:04:50]} 9... O-O {[%clk
0:04:39.9]} 10. O-O {[%clk 0:04:48.1]} 10... Nc6 {[%clk 0:04:39.2]} 11. Rc1
{[%clk 0:04:47.2]} 11... Bd7 {[%clk 0:04:33.7]} 12. Ne5 {[%clk 0:04:46.1]} 12...
Nh5 {[%clk 0:04:22.1]} 13. Nxd7 {[%clk 0:04:42.3]} 13... Qxd7 {[%clk 0:04:20.4]}
14. Bh2 {[%clk 0:04:41.1]} 14... Nf6 {[%clk 0:04:17.4]} 15. Na4 {[%clk
0:04:38.1]} 15... Rac8 {[%clk 0:03:41.8]} 16. Nb6 {[%clk 0:04:36.6]} 1-0

[Event "Live Chess"]
[Site "Chess.com"]
[Date "2024.06.01"]
[Round "-"]
[White "koekoekoe"]
[Black "updatedopenings2024"]
[Result "0-1"]
[WhiteElo "2086"]
[BlackElo "1938"]
[TimeControl "300"]
[EndTime "11:13:33 PDT"]
[Termination "updatedopenings2024 won on time"]

1. d4 {[%clk 0:04:58.6]} 1... Nf6 {[%clk 0:04:58.1]} 2. Bf4 {[%clk 0:04:56.2]}
2... e6 {[%clk 0:04:57]} 3. e3 {[%clk 0:04:53.2]} 3... c5 {[%clk 0:04:56.7]} 4.
c3 {[%clk 0:04:50.7]} 4... d5 {[%clk 0:04:56]} 5. Nd2 {[%clk 0:04:48.4]} 5...
Bd6 {[%clk 0:04:55.6]} 6. Bg3 {[%clk 0:04:47.5]} 6... Qc7 {[%clk 0:04:55.2]} 7.
Ngf3 {[%clk 0:04:46.1]} 7... Nbd7 {[%clk 0:04:54.5]} 8. Bb5 {[%clk 0:04:42.2]}
8... O-O {[%clk 0:04:53.3]} 9. O-O {[%clk 0:04:37.8]} 9... a6 {[%clk 0:04:52.1]}
10. Ba4 {[%clk 0:04:36.3]} 10... b5 {[%clk 0:04:51.4]} 11. Bc2 {[%clk
0:04:35.8]} 11... e5 {[%clk 0:04:48.2]} 12. dxc5 {[%clk 0:04:28.5]} 12... Nxc5
{[%clk 0:04:45.4]} 13. Nb3 {[%clk 0:04:19.8]} 13... Nce4 {[%clk 0:04:29]} 14.
Bxe4 {[%clk 0:04:11.5]} 14... dxe4 {[%clk 0:04:24.1]} 15. Nfd2 {[%clk
0:04:01.7]} 15... Rd8 {[%clk 0:04:20.9]} 16. Qe2 {[%clk 0:03:57.5]} 16... Bb7
{[%clk 0:04:18]} 17. Bh4 {[%clk 0:03:50.1]} 17... Be7 {[%clk 0:04:14.8]} 18.
Bxf6 {[%clk 0:03:43.2]} 18... Bxf6 {[%clk 0:04:14.7]} 19. Qg4 {[%clk 0:03:41.9]}
19... Qd7 {[%clk 0:03:43.5]} 20. Qxd7 {[%clk 0:03:18.2]} 20... Rxd7 {[%clk
0:03:43.4]} 21. a4 {[%clk 0:02:51.8]} 21... Rad8 {[%clk 0:03:33.9]} 22. axb5
{[%clk 0:02:49.5]} 22... axb5 {[%clk 0:03:33.8]} 23. Ra7 {[%clk 0:02:44]} 23...
Bd5 {[%clk 0:03:30.7]} 24. Rxd7 {[%clk 0:02:36]} 24... Rxd7 {[%clk 0:03:30.6]}
25. Nc5 {[%clk 0:02:33.9]} 25... Ra7 {[%clk 0:03:29.2]} 26. Ndxe4 {[%clk
0:02:27.6]} 26... Ra2 {[%clk 0:03:27.5]} 27. Nxf6+ {[%clk 0:02:25.5]} 27... gxf6
{[%clk 0:03:27.4]} 28. b4 {[%clk 0:01:51.1]} 28... Rc2 {[%clk 0:03:23.4]} 29.
Nd7 {[%clk 0:01:40.1]} 29... Kg7 {[%clk 0:03:20.6]} 30. Nb6 {[%clk 0:01:39.1]}
30... Be4 {[%clk 0:03:16.6]} 31. f3 {[%clk 0:01:28.6]} 31... Bd3 {[%clk
0:03:15]} 32. Rd1 {[%clk 0:01:27.7]} 32... Bf5 {[%clk 0:03:06.5]} 33. e4 {[%clk
0:01:21.5]} 33... Be6 {[%clk 0:03:03.1]} 34. Nd5 {[%clk 0:01:20.4]} 34... Bxd5
{[%clk 0:02:58.4]} 35. Rxd5 {[%clk 0:01:12.3]} 35... Rxc3 {[%clk 0:02:57.3]} 36.
Rxb5 {[%clk 0:01:11.9]} 36... Rb3 {[%clk 0:02:56.1]} 37. Rb8 {[%clk 0:01:10.7]}
37... Rb2 {[%clk 0:02:55.3]} 38. b5 {[%clk 0:01:09.9]} 38... h5 {[%clk 0:02:53]}
39. b6 {[%clk 0:01:09.3]} 39... h4 {[%clk 0:02:50.8]} 40. Kf1 {[%clk 0:00:53.3]}
40... h3 {[%clk 0:02:45.8]} 41. gxh3 {[%clk 0:00:38.9]} 41... Rxh2 {[%clk
0:02:44.7]} 42. b7 {[%clk 0:00:38.1]} 42... Rb2 {[%clk 0:02:44.1]} 43. Ke1
{[%clk 0:00:36.8]} 43... Kh7 {[%clk 0:02:34.1]} 44. Kd1 {[%clk 0:00:36.2]} 44...
Kg7 {[%clk 0:02:33.3]} 45. Kc1 {[%clk 0:00:35.8]} 45... Rb6 {[%clk 0:02:32.4]}
46. Kc2 {[%clk 0:00:35]} 46... Kh7 {[%clk 0:02:31.6]} 47. Kc3 {[%clk 0:00:34.5]}
47... Kg7 {[%clk 0:02:30.9]} 48. Kc4 {[%clk 0:00:34.1]} 48... Rb1 {[%clk
0:02:30.2]} 49. Kc5 {[%clk 0:00:31.4]} 49... Kh7 {[%clk 0:02:28.5]} 50. Kc6
{[%clk 0:00:30.1]} 50... Rc1+ {[%clk 0:02:25.8]} 51. Kd7 {[%clk 0:00:28.5]}
51... Rb1 {[%clk 0:02:25.1]} 52. Ke7 {[%clk 0:00:27.7]} 52... Kg7 {[%clk
0:02:23.6]} 53. Kd8 {[%clk 0:00:26]} 53... Rd1+ {[%clk 0:02:21.8]} 54. Kc7
{[%clk 0:00:25.3]} 54... Rc1+ {[%clk 0:02:21.1]} 55. Kd6 {[%clk 0:00:24.5]}
55... Rd1+ {[%clk 0:02:19.7]} 56. Ke7 {[%clk 0:00:23.8]} 56... Rb1 {[%clk
0:02:18.9]} 57. Kd6 {[%clk 0:00:19.8]} 57... Rd1+ {[%clk 0:02:17.6]} 58. Kc5
{[%clk 0:00:19.3]} 58... Rc1+ {[%clk 0:02:17]} 59. Kb4 {[%clk 0:00:18.3]} 59...
Rb1+ {[%clk 0:02:16.5]} 60. Kc3 {[%clk 0:00:18]} 60... Kh7 {[%clk 0:02:14]} 61.
Kd2 {[%clk 0:00:17.9]} 61... Kg7 {[%clk 0:02:12.9]} 62. Ke3 {[%clk 0:00:17.5]}
62... Rb3+ {[%clk 0:02:11.8]} 63. Kf2 {[%clk 0:00:17]} 63... Rb2+ {[%clk
0:02:10.7]} 64. Kg3 {[%clk 0:00:16.9]} 64... Rb1 {[%clk 0:02:10.2]} 65. Kg4
{[%clk 0:00:16.6]} 65... Rg1+ {[%clk 0:02:09.2]} 66. Kh4 {[%clk 0:00:15.8]}
66... Rb1 {[%clk 0:02:09.1]} 67. Kg3 {[%clk 0:00:14.5]} 67... Rg1+ {[%clk
0:02:08.3]} 68. Kf2 {[%clk 0:00:14.4]} 68... Rb1 {[%clk 0:02:08.1]} 69. Kg3
{[%clk 0:00:13.8]} 69... Rb2 {[%clk 0:02:07.4]} 70. Kh4 {[%clk 0:00:13]} 70...
Rb3 {[%clk 0:02:06.7]} 71. Kg4 {[%clk 0:00:11.6]} 71... Rb1 {[%clk 0:02:05.5]}
72. Kf5 {[%clk 0:00:11.5]} 72... Rg1 {[%clk 0:02:00.5]} 73. Rg8+ {[%clk
0:00:10.6]} 73... Kxg8 {[%clk 0:01:59.4]} 74. b8=Q+ {[%clk 0:00:10.5]} 74... Kg7
{[%clk 0:01:58.8]} 75. h4 {[%clk 0:00:04.9]} 75... Rg3 {[%clk 0:01:57.7]} 76. f4
{[%clk 0:00:03.2]} 76... Rf3 {[%clk 0:01:55.5]} 77. Kg4 {[%clk 0:00:01.4]} 77...
Rxf4+ {[%clk 0:01:54.6]} 78. Kg3 {[%clk 0:00:01.3]} 78... Rxe4 {[%clk 0:01:53]}
79. Qb1 {[%clk 0:00:01.1]} 79... Re3+ {[%clk 0:01:50.5]} 0-1

[Event "Live Chess"]
[Site "Chess.com"]
[Date "2024.06.01"]
[Round "-"]
[White "sugandhasinha"]
[Black "grillage"]
[Result "0-1"]
[WhiteElo "1146"]
[BlackElo "1894"]
[TimeControl "300"]
[EndTime "11:13:50 PDT"]
[Termination "grillage won by resignation"]

1. d4 {[%clk 0:04:54.7]} 1... e6 {[%clk 0:04:58.3]} 2. e4 {[%clk 0:04:53]} 2...
d5 {[%clk 0:04:56.3]} 3. e5 {[%clk 0:04:52.8]} 3... c5 {[%clk 0:04:54.6]} 4. c3
{[%clk 0:04:50.2]} 4... Nc6 {[%clk 0:04:53.4]} 5. Nf3 {[%clk 0:04:48.8]} 5...
Bd7 {[%clk 0:04:49.6]} 6. Bd3 {[%clk 0:04:45.4]} 6... cxd4 {[%clk 0:04:46.2]} 7.
cxd4 {[%clk 0:04:44]} 7... Qb6 {[%clk 0:04:44.9]} 8. O-O {[%clk 0:04:38.8]} 8...
Nxd4 {[%clk 0:04:40.2]} 9. Nxd4 {[%clk 0:04:35.4]} 9... Qxd4 {[%clk 0:04:39.2]}
10. Nc3 {[%clk 0:04:31.7]} 10... a6 {[%clk 0:04:28.4]} 11. Be3 {[%clk
0:04:27.7]} 11... Qxe5 {[%clk 0:04:25.9]} 12. Qb3 {[%clk 0:04:25.8]} 12... Qc7
{[%clk 0:04:14.3]} 13. Rac1 {[%clk 0:04:19.9]} 13... Bc6 {[%clk 0:04:12.9]} 14.
f4 {[%clk 0:04:10.1]} 14... Bd6 {[%clk 0:04:07.4]} 15. g3 {[%clk 0:04:07.5]}
15... Nf6 {[%clk 0:04:01.6]} 16. Bd4 {[%clk 0:04:04]} 16... Be7 {[%clk
0:03:55.3]} 17. Be5 {[%clk 0:04:02.2]} 17... Qc8 {[%clk 0:03:49.2]} 18. Na4
{[%clk 0:03:57]} 18... Qd8 {[%clk 0:03:39.8]} 19. Nb6 {[%clk 0:03:53.2]} 19...
Ra7 {[%clk 0:03:35.5]} 20. a4 {[%clk 0:03:41.4]} 20... O-O {[%clk 0:03:31.4]}
21. a5 {[%clk 0:03:39.9]} 21... Nd7 {[%clk 0:03:29.6]} 22. Qc2 {[%clk
0:03:26.8]} 22... Nxb6 {[%clk 0:03:27.5]} 23. Bxh7+ {[%clk 0:03:24.3]} 23... Kh8
{[%clk 0:03:25]} 24. axb6 {[%clk 0:03:23.3]} 24... Ra8 {[%clk 0:03:22.9]} 25.
Bd4 {[%clk 0:03:19.3]} 25... Bf6 {[%clk 0:03:20.8]} 26. Bxf6 {[%clk 0:03:12.9]}
26... Qxf6 {[%clk 0:03:19.5]} 27. Bd3 {[%clk 0:03:07.7]} 27... Qd4+ {[%clk
0:03:15.4]} 28. Rf2 {[%clk 0:03:06.3]} 28... Qxb6 {[%clk 0:03:11.5]} 29. Qe2
{[%clk 0:03:04.5]} 29... g6 {[%clk 0:02:50.8]} 30. f5 {[%clk 0:03:02.6]} 30...
exf5 {[%clk 0:02:46.4]} 31. Qe5+ {[%clk 0:03:01.5]} 31... Kg8 {[%clk 0:02:37.2]}
32. h4 {[%clk 0:02:47.4]} 32... Rfe8 {[%clk 0:02:35.6]} 33. Qf6 {[%clk
0:02:43.3]} 33... Re6 {[%clk 0:02:32.4]} 34. Qg5 {[%clk 0:02:41.2]} 34... Qd8
{[%clk 0:02:29.2]} 35. Qd2 {[%clk 0:02:36.2]} 35... Qe7 {[%clk 0:02:24.3]} 36.
h5 {[%clk 0:02:33.7]} 36... Kg7 {[%clk 0:02:19.1]} 37. h6+ {[%clk 0:02:30.2]}
37... Kh7 {[%clk 0:02:17.6]} 38. Rcf1 {[%clk 0:02:19]} 38... d4 {[%clk
0:02:15.6]} 39. g4 {[%clk 0:02:16.5]} 39... Qh4 {[%clk 0:01:59.7]} 40. Rxf5
{[%clk 0:01:48]} 40... Qxg4+ {[%clk 0:01:47.9]} 41. Kh2 {[%clk 0:01:36.7]} 41...
Qh4+ {[%clk 0:01:38.9]} 42. Kg1 {[%clk 0:01:24.4]} 42... Qg3+ {[%clk 0:01:37]}
0-1

[Event "Live Chess"]
[Site "Chess.com"]
[Date "2024.06.01"]
[Round "-"]
[White "NottheBishopSacrifice"]
[Black "Andorranarmy"]
[Result "0-1"]
[WhiteElo "2231"]
[BlackElo "2079"]
[TimeControl "300"]
[EndTime "11:13:59 PDT"]
[Termination "Andorranarmy won by resignation"]

1. Nf3 {[%clk 0:04:57.6]} 1... Nf6 {[%clk 0:04:58.5]} 2. g3 {[%clk 0:04:57.5]}
2... e6 {[%clk 0:04:58.3]} 3. Bg2 {[%clk 0:04:56.9]} 3... d5 {[%clk 0:04:58.2]}
4. O-O {[%clk 0:04:56]} 4... c5 {[%clk 0:04:57.8]} 5. d4 {[%clk 0:04:55.3]} 5...
Nc6 {[%clk 0:04:57.4]} 6. c4 {[%clk 0:04:54.4]} 6... Be7 {[%clk 0:04:45.7]} 7.
cxd5 {[%clk 0:04:53.1]} 7... exd5 {[%clk 0:04:44.4]} 8. Nc3 {[%clk 0:04:52.7]}
8... Be6 {[%clk 0:04:42.4]} 9. Bg5 {[%clk 0:04:50.5]} 9... O-O {[%clk
0:04:40.4]} 10. dxc5 {[%clk 0:04:49.1]} 10... Bxc5 {[%clk 0:04:36.9]} 11. Bxf6
{[%clk 0:04:47.6]} 11... Qxf6 {[%clk 0:04:31.6]} 12. Nxd5 {[%clk 0:04:47]} 12...
Qxb2 {[%clk 0:04:22.1]} 13. e4 {[%clk 0:04:43]} 13... Bxd5 {[%clk 0:04:15.5]}
14. Qxd5 {[%clk 0:04:40.9]} 14... Bb6 {[%clk 0:04:07.9]} 15. Rad1 {[%clk
0:04:15]} 15... Rad8 {[%clk 0:04:05.5]} 16. Qb3 {[%clk 0:04:07.7]} 16... Qf6
{[%clk 0:03:30.2]} 17. Rd5 {[%clk 0:04:00.1]} 17... Rxd5 {[%clk 0:03:14.9]} 18.
exd5 {[%clk 0:03:56.5]} 18... Nd4 {[%clk 0:03:13.8]} 19. Nxd4 {[%clk 0:03:55.5]}
19... Qxd4 {[%clk 0:03:09.6]} 20. a4 {[%clk 0:03:53.6]} 20... a5 {[%clk
0:02:57.2]} 21. Qb5 {[%clk 0:03:35.3]} 21... h6 {[%clk 0:02:48.5]} 22. Qd7
{[%clk 0:03:32.5]} 22... Rb8 {[%clk 0:02:33.3]} 23. Qd6 {[%clk 0:03:21.1]} 23...
Ba7 {[%clk 0:02:29.4]} 24. Qc7 {[%clk 0:03:17.6]} 24... Qxa4 {[%clk 0:02:22.9]}
25. d6 {[%clk 0:03:15.6]} 25... Qe8 {[%clk 0:01:39.4]} 26. Qxa5 {[%clk
0:03:10.9]} 26... Bd4 {[%clk 0:01:27.9]} 27. Qc7 {[%clk 0:03:06.1]} 27... b5
{[%clk 0:01:20.2]} 28. d7 {[%clk 0:03:04.6]} 28... Qd8 {[%clk 0:01:18.2]} 29.
Qd6 {[%clk 0:03:03.3]} 29... Bf6 {[%clk 0:01:15.2]} 30. Bd5 {[%clk 0:03:00.7]}
30... b4 {[%clk 0:01:13.2]} 31. Bb3 {[%clk 0:02:58.1]} 31... Be7 {[%clk
0:01:05.4]} 32. Qd5 {[%clk 0:02:56.2]} 32... Qf8 {[%clk 0:00:54.8]} 33. Rc1
{[%clk 0:02:55.5]} 33... Rd8 {[%clk 0:00:53.3]} 34. Rc7 {[%clk 0:02:52.9]} 34...
Bd6 {[%clk 0:00:47.1]} 35. Rb7 {[%clk 0:02:47.3]} 35... Bc5 {[%clk 0:00:43.8]}
36. Kg2 {[%clk 0:02:44]} 36... Qe7 {[%clk 0:00:43]} 37. Rb5 {[%clk 0:02:37.9]}
37... Bd6 {[%clk 0:00:40.9]} 38. Rb7 {[%clk 0:02:36.6]} 38... Rxd7 {[%clk
0:00:38.4]} 39. Rxd7 {[%clk 0:02:26.6]} 39... Qxd7 {[%clk 0:00:38.3]} 40. h4
{[%clk 0:02:25.5]} 40... Qe7 {[%clk 0:00:36.4]} 41. h5 {[%clk 0:02:24.1]} 41...
Kf8 {[%clk 0:00:32.8]} 42. Qa8+ {[%clk 0:02:22]} 42... Qe8 {[%clk 0:00:31.8]}
43. Qc6 {[%clk 0:02:20.4]} 43... Qxc6+ {[%clk 0:00:29.8]} 44. Kg1 {[%clk
0:02:12.8]} 44... Qc3 {[%clk 0:00:28.7]} 45. Bd5 {[%clk 0:02:10.6]} 45... b3
{[%clk 0:00:27.6]} 46. Bxb3 {[%clk 0:02:09.8]} 46... Qxb3 {[%clk 0:00:26.9]} 47.
Kg2 {[%clk 0:02:09.5]} 47... Qc2 {[%clk 0:00:26]} 48. Kg1 {[%clk 0:02:08.7]}
48... Bc5 {[%clk 0:00:25.6]} 49. Kg2 {[%clk 0:02:08.6]} 49... Qxf2+ {[%clk
0:00:25.1]} 50. Kh3 {[%clk 0:02:08.5]} 50... Bd6 {[%clk 0:00:23.4]} 0-1

[Event "Live Chess"]
[Site "Chess.com"]
[Date "2024.06.01"]
[Round "-"]
[White "GEMdzq"]
[Black "Andysav3"]
[Result "1-0"]
[WhiteElo "2317"]
[BlackElo "1860"]
[TimeControl "300"]
[EndTime "11:14:19 PDT"]
[Termination "GEMdzq won by resignation"]

1. e4 {[%clk 0:04:58.2]} 1... Nf6 {[%clk 0:04:58.6]} 2. e5 {[%clk 0:04:57.1]}
2... Nd5 {[%clk 0:04:57.8]} 3. Bc4 {[%clk 0:04:55.7]} 3... e6 {[%clk 0:04:56.2]}
4. Nf3 {[%clk 0:04:53.3]} 4... d6 {[%clk 0:04:54.3]} 5. O-O {[%clk 0:04:50.6]}
5... Be7 {[%clk 0:04:49.1]} 6. d4 {[%clk 0:04:49.6]} 6... Nb6 {[%clk 0:04:42.2]}
7. Bd3 {[%clk 0:04:48]} 7... Nc6 {[%clk 0:04:37.5]} 8. c3 {[%clk 0:04:43.4]}
8... dxe5 {[%clk 0:04:33.5]} 9. dxe5 {[%clk 0:04:38.5]} 9... Qd5 {[%clk
0:04:10]} 10. Qe2 {[%clk 0:04:36.3]} 10... a5 {[%clk 0:03:40.9]} 11. Rd1 {[%clk
0:04:34.7]} 11... Qd8 {[%clk 0:03:33.8]} 12. Be3 {[%clk 0:04:19.8]} 12... Bd7
{[%clk 0:03:31.8]} 13. Nbd2 {[%clk 0:04:18.2]} 13... Nd5 {[%clk 0:03:29]} 14.
Ne4 {[%clk 0:04:13.7]} 14... Qb8 {[%clk 0:03:21]} 15. Nc5 {[%clk 0:04:10]} 15...
Nxe3 {[%clk 0:03:15.8]} 16. Qxe3 {[%clk 0:04:09.9]} 16... Qa7 {[%clk 0:02:55.8]}
17. Nxd7 {[%clk 0:04:04.2]} 17... Qxe3 {[%clk 0:02:54.8]} 18. fxe3 {[%clk
0:04:01]} 18... Kxd7 {[%clk 0:02:54]} 19. Bxh7+ {[%clk 0:03:58.3]} 19... Ke8
{[%clk 0:02:50.3]} 20. Be4 {[%clk 0:03:56.9]} 20... Rh5 {[%clk 0:02:39.3]} 21.
Bxc6+ {[%clk 0:03:55]} 21... bxc6 {[%clk 0:02:37.9]} 22. Rd2 {[%clk 0:03:53.5]}
22... Bg5 {[%clk 0:02:28.1]} 23. Kf2 {[%clk 0:03:51.4]} 23... Bh6 {[%clk
0:02:20.3]} 24. Rad1 {[%clk 0:03:50.2]} 24... g5 {[%clk 0:02:13.3]} 25. h3
{[%clk 0:03:46.8]} 25... Kf8 {[%clk 0:01:51.4]} 26. Rd7 {[%clk 0:03:45.2]} 26...
Rc8 {[%clk 0:01:49.5]} 27. Nh2 {[%clk 0:03:36.6]} 27... Rh4 {[%clk 0:01:39.3]}
28. Ng4 {[%clk 0:03:35.2]} 28... Bg7 {[%clk 0:01:36.6]} 29. Nf6 {[%clk
0:03:21.5]} 29... Rh6 {[%clk 0:01:28.4]} 30. Rd8+ {[%clk 0:03:20]} 1-0

[Event "Live Chess"]
[Site "Chess.com"]
[Date "2024.06.01"]
[Round "-"]
[White "TJ-W"]
[Black "powerchs"]
[Result "1-0"]
[WhiteElo "1552"]
[BlackElo "1251"]
[TimeControl "300"]
[EndTime "11:14:26 PDT"]
[Termination "TJ-W won by resignation"]

1. e4 {[%clk 0:04:57]} 1... c5 {[%clk 0:04:54.9]} 2. Nc3 {[%clk 0:04:52.8]} 2...
d6 {[%clk 0:04:52.2]} 3. d4 {[%clk 0:04:51.8]} 3... cxd4 {[%clk 0:04:48.5]} 4.
Qxd4 {[%clk 0:04:51.7]} 4... Nc6 {[%clk 0:04:47.2]} 5. Qe3 {[%clk 0:04:51.1]}
5... Nf6 {[%clk 0:04:39.9]} 6. Bb5 {[%clk 0:04:43]} 6... Bd7 {[%clk 0:04:28]} 7.
Bd2 {[%clk 0:04:39.6]} 7... Ne5 {[%clk 0:04:25.4]} 8. Be2 {[%clk 0:04:26.8]}
8... g6 {[%clk 0:04:20.3]} 9. f4 {[%clk 0:04:23.8]} 9... Neg4 {[%clk 0:04:15.9]}
10. Bxg4 {[%clk 0:04:19.9]} 10... Bxg4 {[%clk 0:04:13.9]} 11. h3 {[%clk
0:04:19]} 11... Bd7 {[%clk 0:04:11.7]} 12. O-O-O {[%clk 0:04:16.5]} 12... Bg7
{[%clk 0:04:09.1]} 13. e5 {[%clk 0:04:13]} 13... dxe5 {[%clk 0:04:01.8]} 14.
fxe5 {[%clk 0:04:12.9]} 14... Ng8 {[%clk 0:03:56.4]} 15. Nf3 {[%clk 0:04:08.8]}
15... e6 {[%clk 0:03:54]} 16. Qc5 {[%clk 0:03:57.3]} 16... Ne7 {[%clk
0:03:51.8]} 17. Bg5 {[%clk 0:03:49.7]} 17... Bf8 {[%clk 0:03:45.4]} 18. Nb5
{[%clk 0:03:31]} 18... Qb6 {[%clk 0:03:37.8]} 19. Nd6+ {[%clk 0:03:17.7]} 19...
Kd8 {[%clk 0:03:34.6]} 20. Qxb6+ {[%clk 0:03:14]} 20... axb6 {[%clk 0:03:33.1]}
21. Nxf7+ {[%clk 0:03:11.7]} 21... Kc7 {[%clk 0:03:30.7]} 22. Nxh8 {[%clk
0:03:06.9]} 22... Bg7 {[%clk 0:03:29]} 23. Nf7 {[%clk 0:02:59.2]} 23... Nd5
{[%clk 0:03:26.7]} 24. a3 {[%clk 0:02:43.1]} 24... Ra4 {[%clk 0:03:08.3]} 25.
Rd4 {[%clk 0:02:33.4]} 25... Ra5 {[%clk 0:03:02.6]} 26. Rc4+ {[%clk 0:02:25.9]}
26... Kb8 {[%clk 0:03:00.2]} 27. Nd6 {[%clk 0:02:18.5]} 27... Bc6 {[%clk
0:02:58.3]} 28. Rf1 {[%clk 0:02:03.2]} 28... h6 {[%clk 0:02:56.4]} 29. Bf6
{[%clk 0:01:56.3]} 29... Bf8 {[%clk 0:02:53]} 30. Nd4 {[%clk 0:01:50.7]} 30...
Ne3 {[%clk 0:02:43.8]} 31. Nxc6+ {[%clk 0:01:44.8]} 31... bxc6 {[%clk
0:02:42.4]} 32. Rxc6 {[%clk 0:01:30.6]} 32... Nxf1 {[%clk 0:02:40.4]} 33. Rc8+
{[%clk 0:01:21]} 33... Ka7 {[%clk 0:02:37.1]} 34. Rxf8 {[%clk 0:01:19.4]} 34...
Ng3 {[%clk 0:02:31.1]} 35. Rf7+ {[%clk 0:01:05.4]} 35... Ka6 {[%clk 0:02:29]}
36. Rf8 {[%clk 0:01:00.5]} 36... Ka7 {[%clk 0:02:26.5]} 37. Bh4 {[%clk
0:00:57.2]} 37... Nf5 {[%clk 0:02:22.2]} 38. Nxf5 {[%clk 0:00:54.2]} 38... exf5
{[%clk 0:02:20.3]} 39. e6 {[%clk 0:00:52.2]} 39... Re5 {[%clk 0:02:18.1]} 40. e7
{[%clk 0:00:51]} 40... Re1+ {[%clk 0:02:12.4]} 41. Bxe1 {[%clk 0:00:49.1]} 1-0